fUSD/lending_fUSD_20260524
["ID","MTS","AMOUNT","RATE_DAILY","PERIOD"]
[422921767,1779631845000,-197.33,0.00028033,30]
[422921759,1779631845000,-207.7,0.00027872,2]
[422921765,1779631845000,-207.7,0.00028033,30]
[422921768,1779631845000,-118.07994376,0.00028082,7]
[422921758,1779631845000,-646.86,0.00027711,7]
[422921764,1779631845000,-726.79905624,0.00028,2]
[422921762,1779631845000,-264.0,0.00027872,10]
[422921766,1779631845000,-671.24,0.00028033,30]
[422921769,1779631846000,-4757.22,0.0002754,10]
[422921775,1779631846000,-356.22,0.00028033,30]
[422921772,1779631846000,-646.86,0.00027872,2]
[422921770,1779631846000,-208.59,0.00027711,7]
[422921773,1779631846000,-208.59,0.00027872,2]
[422921774,1779631846000,-200.31,0.00027872,2]
[422921771,1779631846000,-200.31,0.00027711,7]
[422921776,1779631846000,-290.64,0.00028033,30]
[422921787,1779631846000,-671.24,0.00028194,7]
[422921777,1779631846000,-1901.67005624,0.00028082,7]
[422921778,1779631846000,-524.0,0.00028082,10]
[422921781,1779631846000,-170.66,0.0002813,7]
[422921786,1779631846000,-207.7,0.00028194,7]
[422921782,1779631846000,-439.58178,0.0002814,2]
[422921785,1779631846000,-1350.0,0.00028194,5]
[422921779,1779631846000,-1598.79699543,0.00028111,15]
[422921783,1779631846000,-439.58178,0.0002814,2]
[422921789,1779631846000,-2103.12778986,0.00028195,2]
[422921788,1779631846000,-197.33,0.00028194,7]
[422921780,1779631846000,-166.56,0.0002813,7]
[422921784,1779631846000,-439.58179,0.0002814,2]
[422921796,1779631906000,294.21,0.00027883,120]
[422921797,1779631942000,2000.0,0.0002754,120]
[422921800,1779632313000,-193306.99415009,0.00015,2]
[422921803,1779632369000,676.54,0.0001335,2]
[422921802,1779632369000,676.54,0.00012714,2]
[422921801,1779632369000,676.54,0.00012078,2]
[422921805,1779632370000,676.54,0.00014621,2]
[422921804,1779632370000,676.54,0.00013985,2]
[422921806,1779632416000,700.0,0.00015,14]
[422921807,1779632483000,1802453.74584991,0.00015,2]
[422921810,1779632561000,217.125821,0.00027041,120]
[422921880,1779632942000,1000.0,0.0002808,120]
[422921881,1779633007000,172.74,0.00027213,120]
[422921903,1779633034000,-300.0,0.00014999,2]
[422921896,1779633034000,-614.38785408,0.000149,2]
[422921897,1779633034000,-258.87161287,0.000149,2]
[422921901,1779633034000,-673.0,0.00014999,2]
[422921902,1779633034000,-1200.0,0.00014999,2]
[422921895,1779633034000,-314.63187358,0.000149,2]
[422921894,1779633034000,-356.81041313,0.000149,2]
[422921889,1779633034000,-35.63304213,0.000147,2]
[422921890,1779633034000,-658.95995787,0.000147,2]
[422921888,1779633034000,-658.88045739,0.00014526,2]
[422921892,1779633034000,-151.19530001,0.000149,2]
[422921887,1779633034000,-458.682367,0.00014453,2]
[422921891,1779633034000,-190.99671992,0.000149,2]
[422921886,1779633034000,-495.64,0.00013699,2]
[422921900,1779633034000,-500.0,0.00014999,2]
[422921893,1779633034000,-556.48160206,0.000149,2]
[422921899,1779633034000,-3997.57839118,0.000149,2]
[422921898,1779633034000,-631.11358306,0.000149,2]
[422921918,1779633034000,-1084.77101802,0.00014999,2]
[422921920,1779633034000,-1084.77101802,0.00014999,2]
[422921919,1779633034000,-1084.77101802,0.00014999,2]
[422921922,1779633034000,-457.24022354,0.00014999,2]
[422921904,1779633034000,-150.0,0.00014999,2]
[422921921,1779633034000,-115.36765337,0.00014999,2]
[422921917,1779633034000,-1084.77101802,0.00014999,2]
[422921913,1779633034000,-257.94481207,0.00014999,2]
[422921915,1779633034000,-342.86699056,0.00014999,2]
[422921916,1779633034000,-76.95921539,0.00014999,2]
[422921908,1779633034000,-1084.77101802,0.00014999,2]
[422921911,1779633034000,-1084.77101802,0.00014999,2]
[422921910,1779633034000,-1084.77101802,0.00014999,2]
[422921912,1779633034000,-1084.77101802,0.00014999,2]
[422921909,1779633034000,-1084.77101802,0.00014999,2]
[422921906,1779633034000,-584.69884267,0.00014999,2]
[422921907,1779633034000,-1084.77101802,0.00014999,2]
[422921905,1779633034000,-500.0,0.00014999,2]
[422921914,1779633034000,-407.0,0.00014999,2]
[422921940,1779633037000,-491.23607357,0.00014999,2]
[422921937,1779633037000,-1084.77101802,0.00014999,2]
[422921938,1779633037000,-702.68543285,0.00014999,2]
[422921939,1779633037000,-382.08558517,0.00014999,2]
[422921935,1779633037000,-512.16314111,0.00014999,2]
[422921936,1779633037000,-1084.77101802,0.00014999,2]
[422921961,1779633038000,-1084.77101802,0.00014999,2]
[422921957,1779633038000,-1084.77101802,0.00014999,2]
[422921967,1779633038000,-1084.77101802,0.00014999,2]
[422921969,1779633038000,-1084.77101802,0.00014999,2]
[422921971,1779633038000,-5.11517864,0.00014999,2]
[422921973,1779633038000,-1079.65583938,0.00014999,2]
[422921982,1779633038000,-1084.77101802,0.00014999,2]
[422921993,1779633038000,-1084.77101802,0.00014999,2]
[422921984,1779633038000,-1084.77101802,0.00014999,2]
[422921986,1779633038000,-1084.77101802,0.00014999,2]
[422921991,1779633038000,-1084.77101802,0.00014999,2]
[422921978,1779633038000,-1084.77101802,0.00014999,2]
[422921989,1779633038000,-1084.77101802,0.00014999,2]
[422921988,1779633038000,-1084.77101802,0.00014999,2]
[422921965,1779633038000,-1084.77101802,0.00014999,2]
[422921976,1779633038000,-1084.77101802,0.00014999,2]
[422921962,1779633038000,-1084.77101802,0.00014999,2]
[422921948,1779633038000,-1084.77101802,0.00014999,2]
[422921955,1779633038000,-1084.77101802,0.00014999,2]
[422921942,1779633038000,-1084.77101802,0.00014999,2]
[422921941,1779633038000,-593.53494445,0.00014999,2]
[422921951,1779633038000,-1084.77101802,0.00014999,2]
[422921943,1779633038000,-1084.77101802,0.00014999,2]
[422921945,1779633038000,-1084.77101802,0.00014999,2]
[422921947,1779633038000,-1084.77101802,0.00014999,2]
[422921950,1779633038000,-1084.77101802,0.00014999,2]
[422921946,1779633038000,-1084.77101802,0.00014999,2]
[422921944,1779633038000,-1084.77101802,0.00014999,2]
[422921949,1779633038000,-1084.77101802,0.00014999,2]
[422921952,1779633038000,-1084.77101802,0.00014999,2]
[422921954,1779633038000,-1084.77101802,0.00014999,2]
[422921953,1779633038000,-1084.77101802,0.00014999,2]
[422921963,1779633038000,-1084.77101802,0.00014999,2]
[422921964,1779633038000,-1084.77101802,0.00014999,2]
[422921959,1779633038000,-1084.77101802,0.00014999,2]
[422921995,1779633038000,-1084.77101802,0.00014999,2]
[422921980,1779633038000,-1084.77101802,0.00014999,2]
[422922005,1779633038000,-1087.96508711,0.00014999,2]
[422922034,1779633038000,-1087.96508711,0.00014999,2]
[422922036,1779633038000,-1087.96508711,0.00014999,2]
[422922038,1779633038000,-1087.96508711,0.00014999,2]
[422922040,1779633038000,-1087.96508711,0.00014999,2]
[422922047,1779633038000,-1087.96508711,0.00014999,2]
[422922050,1779633038000,-1087.96508711,0.00014999,2]
[422922053,1779633038000,-1087.96508711,0.00014999,2]
[422922048,1779633038000,-1087.96508711,0.00014999,2]
[422922055,1779633038000,-1087.96508711,0.00014999,2]
[422922049,1779633038000,-1087.96508711,0.00014999,2]
[422922052,1779633038000,-1087.96508711,0.00014999,2]
[422922054,1779633038000,-1087.96508711,0.00014999,2]
[422922062,1779633038000,-1939.06989098,0.00015,2]
[422922058,1779633038000,-243.05431243,0.00014999,2]
[422922060,1779633038000,-27752.19340654,0.00015,2]
[422922032,1779633038000,-184.1205941,0.00014999,2]
[422922022,1779633038000,-1087.96508711,0.00014999,2]
[422922057,1779633038000,-500.0,0.00014999,2]
[422922044,1779633038000,-1087.96508711,0.00014999,2]
[422922046,1779633038000,-1087.96508711,0.00014999,2]
[422922003,1779633038000,-1087.96508711,0.00014999,2]
[422922001,1779633038000,-1087.96508711,0.00014999,2]
[422921997,1779633038000,-1084.77101802,0.00014999,2]
[422922009,1779633038000,-1087.96508711,0.00014999,2]
[422922007,1779633038000,-1087.96508711,0.00014999,2]
[422922010,1779633038000,-1087.96508711,0.00014999,2]
[422922012,1779633038000,-1087.96508711,0.00014999,2]
[422921999,1779633038000,-1084.77101802,0.00014999,2]
[422922014,1779633038000,-1087.96508711,0.00014999,2]
[422922018,1779633038000,-1087.96508711,0.00014999,2]
[422922020,1779633038000,-1087.96508711,0.00014999,2]
[422922026,1779633038000,-1087.96508711,0.00014999,2]
[422922024,1779633038000,-1087.96508711,0.00014999,2]
[422922042,1779633038000,-1087.96508711,0.00014999,2]
[422922028,1779633038000,-500.0,0.00014999,2]
[422922030,1779633038000,-1087.96508711,0.00014999,2]
[422922016,1779633038000,-1087.96508711,0.00014999,2]
[422922143,1779633039000,-400.765,0.00015,2]
[422922144,1779633039000,-1732.78621704,0.00015,2]
[422922145,1779633039000,-632.7177336,0.00015,2]
[422922146,1779633040000,-15289.0,0.00015,2]
[422922166,1779633049000,-8022.5124,0.00015,2]
[422922168,1779633049000,-2632.5438576,0.00015,2]
[422922167,1779633049000,-1540.36013224,0.00015,2]
[422922170,1779633049000,-6478.86472451,0.00015,2]
[422922169,1779633049000,-278.08535003,0.00015,2]
[422922172,1779633049000,-38225.00000002,0.00015,2]
[422922171,1779633049000,-764100.50008922,0.00015,2]
[422922180,1779633049000,-6606.42418777,0.00015,2]
[422922177,1779633049000,-252.1852577,0.00015,2]
[422922178,1779633049000,-719.32715,0.00015,2]
[422922179,1779633049000,-282.70010344,0.00015,2]
[422922200,1779633050000,-4616.95190108,0.00015,2]
[422922193,1779633050000,-509.76974532,0.00015,2]
[422922194,1779633050000,-10565.02403268,0.00015,2]
[422922192,1779633050000,-404806.11723133,0.00015,2]
[422922195,1779633050000,-10540.026,0.00015,2]
[422922199,1779633050000,-1855.93324405,0.00015,2]
[422922196,1779633050000,-961.205791,0.00015,2]
[422922197,1779633050000,-1060.18561405,0.00015,2]
[422922198,1779633050000,-181525.07174907,0.00015,2]
[422922203,1779633050000,-419.73125524,0.00015,2]
[422922204,1779633050000,-685.82336317,0.00015,2]
[422922202,1779633050000,-4571.33829656,0.00015,2]
[422922201,1779633050000,-2484.42945972,0.00015,2]
[422922205,1779633053000,747.1,0.00028,120]
[422922206,1779633098000,403.492658,0.00025162,120]
[422922207,1779633110000,366.477786,0.00025162,120]
[422922208,1779633145000,201.746329,0.00024659,120]
[422922209,1779633157000,183.238893,0.00024659,120]
[422922210,1779633193000,289.065323,0.00024659,120]
[422922250,1779633498000,266.0,0.00028082,120]
[422922259,1779634141000,1000.0,0.00028081,120]
[422922283,1779634231000,-154.98,8.563e-05,2]
[422922284,1779634231000,-339.37035117,9.419e-05,2]
[422922287,1779634231000,-290.43943225,0.00013989,2]
[422922285,1779634231000,-250.0,0.00010679,2]
[422922288,1779634231000,-600.12621935,0.00013989,2]
[422922286,1779634231000,-965.21021658,0.000137,2]
[422922291,1779634231000,-393.653476,0.0001399,2]
[422922290,1779634231000,-590.5656516,0.0001399,2]
[422922293,1779634231000,-198.65331209,0.00014889,2]
[422922292,1779634231000,-6820.3169831,0.0001399,2]
[422922294,1779634231000,-300.0,0.00014897,2]
[422922289,1779634231000,-309.4343484,0.00013989,2]
[422922357,1779634232000,-500.0,0.00014898,2]
[422922336,1779634232000,-500.0,0.00014898,2]
[422922338,1779634232000,-500.0,0.00014898,2]
[422922351,1779634232000,-500.0,0.00014898,2]
[422922348,1779634232000,-500.0,0.00014898,2]
[422922334,1779634232000,-500.0,0.00014898,2]
[422922350,1779634232000,-500.0,0.00014898,2]
[422922353,1779634232000,-500.0,0.00014898,2]
[422922355,1779634232000,-500.0,0.00014898,2]
[422922359,1779634232000,-500.0,0.00014898,2]
[422922367,1779634232000,-500.0,0.00014898,2]
[422922363,1779634232000,-500.0,0.00014898,2]
[422922371,1779634232000,-500.0,0.00014898,2]
[422922373,1779634232000,-500.0,0.00014898,2]
[422922377,1779634232000,-500.0,0.00014898,2]
[422922375,1779634232000,-500.0,0.00014898,2]
[422922365,1779634232000,-500.0,0.00014898,2]
[422922345,1779634232000,-500.0,0.00014898,2]
[422922379,1779634232000,-500.0,0.00014898,2]
[422922369,1779634232000,-500.0,0.00014898,2]
[422922381,1779634232000,-500.0,0.00014898,2]
[422922382,1779634232000,-500.0,0.00014898,2]
[422922361,1779634232000,-500.0,0.00014898,2]
[422922332,1779634232000,-500.0,0.00014898,2]
[422922320,1779634232000,-500.0,0.00014898,2]
[422922330,1779634232000,-500.0,0.00014898,2]
[422922298,1779634232000,-255.91345049,0.00014898,2]
[422922299,1779634232000,-259.28918987,0.00014898,2]
[422922302,1779634232000,-500.0,0.00014898,2]
[422922295,1779634232000,-392.20772506,0.00014898,2]
[422922301,1779634232000,-500.0,0.00014898,2]
[422922303,1779634232000,-500.0,0.00014898,2]
[422922296,1779634232000,-500.0,0.00014898,2]
[422922297,1779634232000,-543.94816744,0.00014898,2]
[422922300,1779634232000,-500.0,0.00014898,2]
[422922305,1779634232000,-500.0,0.00014898,2]
[422922314,1779634232000,-500.0,0.00014898,2]
[422922316,1779634232000,-500.0,0.00014898,2]
[422922304,1779634232000,-500.0,0.00014898,2]
[422922306,1779634232000,-500.0,0.00014898,2]
[422922318,1779634232000,-500.0,0.00014898,2]
[422922312,1779634232000,-500.0,0.00014898,2]
[422922308,1779634232000,-500.0,0.00014898,2]
[422922310,1779634232000,-500.0,0.00014898,2]
[422922322,1779634232000,-500.0,0.00014898,2]
[422922324,1779634232000,-500.0,0.00014898,2]
[422922326,1779634232000,-500.0,0.00014898,2]
[422922328,1779634232000,-500.0,0.00014898,2]
[422922339,1779634232000,-500.0,0.00014898,2]
[422922342,1779634232000,-500.0,0.00014898,2]
[422922384,1779634232000,-500.0,0.00014898,2]
[422922385,1779634232000,-263.37402441,0.00014898,2]
[422922383,1779634232000,-500.0,0.00014898,2]
[422922418,1779634232000,-500.0,0.00014898,2]
[422922419,1779634232000,-500.0,0.00014898,2]
[422922416,1779634232000,-500.0,0.00014898,2]
[422922411,1779634232000,-500.0,0.00014898,2]
[422922415,1779634232000,-500.0,0.00014898,2]
[422922417,1779634232000,-500.0,0.00014898,2]
[422922420,1779634232000,-500.0,0.00014898,2]
[422922423,1779634232000,-500.0,0.00014898,2]
[422922424,1779634232000,-500.0,0.00014898,2]
[422922425,1779634232000,-500.0,0.00014898,2]
[422922421,1779634232000,-500.0,0.00014898,2]
[422922426,1779634232000,-500.0,0.00014898,2]
[422922428,1779634232000,-500.0,0.00014898,2]
[422922429,1779634232000,-500.0,0.00014898,2]
[422922430,1779634232000,-345.8951494,0.00014898,2]
[422922431,1779634232000,-154.1048506,0.00014898,2]
[422922432,1779634232000,-150.0,0.00014898,2]
[422922435,1779634232000,-471.84604647,0.00014899,2]
[422922433,1779634232000,-17247.72014925,0.00014899,2]
[422922434,1779634232000,-6544.65756157,0.00014899,2]
[422922436,1779634232000,-354.00232647,0.00014899,2]
[422922437,1779634232000,-272.12352312,0.00014899,2]
[422922386,1779634232000,-500.0,0.00014898,2]
[422922412,1779634232000,-500.0,0.00014898,2]
[422922413,1779634232000,-500.0,0.00014898,2]
[422922427,1779634232000,-500.0,0.00014898,2]
[422922407,1779634232000,-500.0,0.00014898,2]
[422922414,1779634232000,-500.0,0.00014898,2]
[422922387,1779634232000,-500.0,0.00014898,2]
[422922392,1779634232000,-500.0,0.00014898,2]
[422922389,1779634232000,-500.0,0.00014898,2]
[422922388,1779634232000,-500.0,0.00014898,2]
[422922390,1779634232000,-500.0,0.00014898,2]
[422922393,1779634232000,-500.0,0.00014898,2]
[422922394,1779634232000,-500.0,0.00014898,2]
[422922397,1779634232000,-500.0,0.00014898,2]
[422922396,1779634232000,-500.0,0.00014898,2]
[422922395,1779634232000,-500.0,0.00014898,2]
[422922391,1779634232000,-500.0,0.00014898,2]
[422922403,1779634232000,-500.0,0.00014898,2]
[422922409,1779634232000,-500.0,0.00014898,2]
[422922405,1779634232000,-500.0,0.00014898,2]
[422922410,1779634232000,-526.33740245,0.00014898,2]
[422922408,1779634232000,-500.0,0.00014898,2]
[422922402,1779634232000,-500.0,0.00014898,2]
[422922401,1779634232000,-500.0,0.00014898,2]
[422922399,1779634232000,-500.0,0.00014898,2]
[422922398,1779634232000,-500.0,0.00014898,2]
[422922400,1779634232000,-500.0,0.00014898,2]
[422922406,1779634232000,-500.0,0.00014898,2]
[422922404,1779634232000,-500.0,0.00014898,2]
[422922438,1779634238000,-11125.88655349,0.00014899,2]
[422922461,1779634240000,-500.0,0.00014999,2]
[422922460,1779634240000,-500.0,0.00014999,2]
[422922452,1779634240000,-500.0,0.00014999,2]
[422922459,1779634240000,-500.0,0.00014999,2]
[422922456,1779634240000,-500.0,0.00014999,2]
[422922462,1779634240000,-500.0,0.00014999,2]
[422922465,1779634240000,-1315.32,0.00014999,2]
[422922464,1779634240000,-198.14496198,0.00014999,2]
[422922467,1779634240000,-311.61315109,0.00014999,2]
[422922466,1779634240000,-1003.70684891,0.00014999,2]
[422922455,1779634240000,-500.0,0.00014999,2]
[422922468,1779634240000,-1315.32,0.00014999,2]
[422922463,1779634240000,-500.0,0.00014999,2]
[422922453,1779634240000,-500.0,0.00014999,2]
[422922449,1779634240000,-1832.9781872,0.00014999,2]
[422922457,1779634240000,-350.99076822,0.00014999,2]
[422922458,1779634240000,-500.0,0.00014999,2]
[422922450,1779634240000,-1193.71543393,0.00014999,2]
[422922451,1779634240000,-500.0,0.00014999,2]
[422922447,1779634240000,-387.00698607,0.00014999,2]
[422922446,1779634240000,-500.0,0.00014999,2]
[422922441,1779634240000,-2442886.94712083,0.00014899,2]
[422922445,1779634240000,-178.96984945,0.00014925,2]
[422922444,1779634240000,-746.52,0.000149,2]
[422922442,1779634240000,-1913.85,0.00014899,2]
[422922443,1779634240000,-16182.03367876,0.00014899,2]
[422922448,1779634240000,-840.61328548,0.00014999,2]
[422922440,1779634240000,-3000.93304004,0.00014899,2]
[422922470,1779634240000,-1315.32,0.00014999,2]
[422922454,1779634240000,-500.0,0.00014999,2]
[422922469,1779634240000,-1315.32,0.00014999,2]
[422922477,1779634240000,-500.0,0.00014999,2]
[422922473,1779634240000,-500.0,0.00014999,2]
[422922504,1779634240000,-21850.05506787,0.00015,2]
[422922471,1779634240000,-1315.32,0.00014999,2]
[422922503,1779634240000,-500.0,0.00014999,2]
[422922497,1779634240000,-500.0,0.00014999,2]
[422922496,1779634240000,-500.0,0.00014999,2]
[422922495,1779634240000,-500.0,0.00014999,2]
[422922500,1779634240000,-500.0,0.00014999,2]
[422922501,1779634240000,-500.0,0.00014999,2]
[422922499,1779634240000,-500.0,0.00014999,2]
[422922502,1779634240000,-500.0,0.00014999,2]
[422922494,1779634240000,-500.0,0.00014999,2]
[422922498,1779634240000,-500.0,0.00014999,2]
[422922492,1779634240000,-500.0,0.00014999,2]
[422922486,1779634240000,-500.0,0.00014999,2]
[422922483,1779634240000,-500.0,0.00014999,2]
[422922493,1779634240000,-500.0,0.00014999,2]
[422922484,1779634240000,-500.0,0.00014999,2]
[422922475,1779634240000,-500.0,0.00014999,2]
[422922474,1779634240000,-500.0,0.00014999,2]
[422922476,1779634240000,-500.0,0.00014999,2]
[422922480,1779634240000,-439.63683398,0.00014999,2]
[422922479,1779634240000,-500.0,0.00014999,2]
[422922472,1779634240000,-500.0,0.00014999,2]
[422922491,1779634240000,-575.12416535,0.00014999,2]
[422922482,1779634240000,-500.0,0.00014999,2]
[422922488,1779634240000,-500.0,0.00014999,2]
[422922481,1779634240000,-60.36316602,0.00014999,2]
[422922487,1779634240000,-500.0,0.00014999,2]
[422922489,1779634240000,-523.34,0.00014999,2]
[422922490,1779634240000,-500.0,0.00014999,2]
[422922478,1779634240000,-500.0,0.00014999,2]
[422922538,1779634241000,-676.54,0.00016528,2]
[422922532,1779634241000,-15562.62,0.00016196,2]
[422922531,1779634241000,-7502.01,0.00016116,2]
[422922529,1779634241000,-150.99,0.00016116,2]
[422922537,1779634241000,-185.74,0.00016514,2]
[422922536,1779634241000,-166.73,0.00016495,2]
[422922533,1779634241000,-453.90085798,0.000162,2]
[422922527,1779634241000,-20827.58,0.00016116,2]
[422922540,1779634241000,-500.0,0.00016921,2]
[422922534,1779634241000,-420.0,0.00016306,2]
[422922546,1779634241000,-999.99,0.00016922,2]
[422922550,1779634241000,-9999.99,0.00016922,2]
[422922542,1779634241000,-500.0,0.00016921,2]
[422922547,1779634241000,-4999.99,0.00016922,2]
[422922548,1779634241000,-1612.69,0.00016922,2]
[422922539,1779634241000,-500.0,0.00016921,2]
[422922535,1779634241000,-2500.0,0.00016434,2]
[422922530,1779634241000,-2565.57,0.00016116,2]
[422922528,1779634241000,-1557.66,0.00016116,2]
[422922509,1779634241000,-27988.12733397,0.00015,2]
[422922521,1779634241000,-676.54,0.00015893,2]
[422922551,1779634241000,-9999.99,0.00016922,2]
[422922514,1779634241000,-385.99,0.00015099,2]
[422922512,1779634241000,-290.62487641,0.00015,2]
[422922513,1779634241000,-185.74,0.00015013,2]
[422922507,1779634241000,-2095.592,0.00015,2]
[422922508,1779634241000,-383.93959513,0.00015,2]
[422922510,1779634241000,-1000.0,0.00015,2]
[422922511,1779634241000,-1037.34605797,0.00015,2]
[422922525,1779634241000,-255.0,0.0001603,2]
[422922523,1779634241000,-453.90085798,0.00016,2]
[422922519,1779634241000,-341.65630897,0.00015821,2]
[422922522,1779634241000,-9214.9,0.00015952,2]
[422922520,1779634241000,-35252.0,0.00015865,2]
[422922515,1779634241000,-676.54,0.00015257,2]
[422922517,1779634241000,-185.74,0.00015513,2]
[422922516,1779634241000,-500.0,0.00015273,2]
[422922524,1779634241000,-185.74,0.00016013,2]
[422922526,1779634241000,-453.90085798,0.000161,2]
[422922518,1779634241000,-500.0,0.00015547,2]
[422922549,1779634241000,-299.99,0.00016922,4]
[422922576,1779634241000,-151.0,0.0001841,2]
[422922543,1779634241000,-500.0,0.00016921,2]
[422922574,1779634241000,-500.0,0.00018359,2]
[422922573,1779634241000,-4214.62,0.00018359,2]
[422922564,1779634241000,-166.73,0.00017856,2]
[422922575,1779634241000,-286.47442401,0.000184,2]
[422922586,1779634241000,-500.0,0.00018864,2]
[422922582,1779634241000,-151.0,0.00018781,2]
[422922585,1779634241000,-500.0,0.00018864,2]
[422922584,1779634241000,-717.9,0.00018864,2]
[422922571,1779634241000,-500.0,0.00018359,2]
[422922583,1779634241000,-286.47442401,0.000188,2]
[422922581,1779634241000,-166.66,0.00018623,2]
[422922579,1779634241000,-736.0,0.00018563,2]
[422922578,1779634241000,-166.73,0.00018537,2]
[422922587,1779634241000,-500.0,0.00018864,2]
[422922590,1779634241000,-166.66,0.00018984,2]
[422922589,1779634241000,-385.99,0.00018873,2]
[422922588,1779634241000,-913.29201516,0.00018865,2]
[422922541,1779634241000,-500.0,0.00016921,2]
[422922580,1779634241000,-286.47442401,0.000186,2]
[422922572,1779634241000,-538.25334645,0.00018359,2]
[422922577,1779634241000,-676.54,0.00018435,2]
[422922567,1779634241000,-172.74,0.00018142,2]
[422922544,1779634241000,-1579.64,0.00016922,2]
[422922570,1779634241000,-500.0,0.00018359,2]
[422922545,1779634241000,-7997.82,0.00016922,2]
[422922554,1779634241000,-200.0,0.0001699,2]
[422922559,1779634241000,-433.0,0.00017252,2]
[422922556,1779634241000,-676.54,0.00017164,2]
[422922561,1779634241000,-166.66,0.00017538,2]
[422922552,1779634241000,-24999.99,0.00016922,2]
[422922558,1779634241000,-166.66,0.00017176,2]
[422922555,1779634241000,-746.52,0.00017,2]
[422922553,1779634241000,-385.99,0.00016986,2]
[422922557,1779634241000,-166.73,0.00017176,2]
[422922560,1779634241000,-500.0,0.0001739,2]
[422922563,1779634241000,-676.54,0.000178,2]
[422922565,1779634241000,-917.36,0.00017886,2]
[422922566,1779634241000,-166.66,0.00017899,2]
[422922569,1779634241000,-166.7,0.00018337,2]
[422922562,1779634241000,-2000.0,0.00017553,2]
[422922568,1779634241000,-166.66,0.00018261,2]
[422922638,1779634242000,-233.06,0.000203,2]
[422922631,1779634242000,-160.0,0.00020018,2]
[422922632,1779634242000,-17368.85,0.00020145,2]
[422922627,1779634242000,-165.0,0.0002,2]
[422922629,1779634242000,-208.8304494,0.00020018,2]
[422922626,1779634242000,-216.0,0.0002,2]
[422922628,1779634242000,-163.0,0.0002,2]
[422922616,1779634242000,-2000.0,0.00019747,2]
[422922615,1779634242000,-676.54,0.00019707,2]
[422922635,1779634242000,-10933.28,0.00020145,2]
[422922619,1779634242000,-176.16409662,0.000198,2]
[422922630,1779634242000,-215.34753388,0.00020018,2]
[422922637,1779634242000,-500.0,0.0002019,2]
[422922642,1779634242000,-168.565414,0.00020532,2]
[422922633,1779634242000,-5557.43,0.00020145,2]
[422922636,1779634242000,-785.01,0.00020145,2]
[422922639,1779634242000,-676.54,0.00020342,2]
[422922640,1779634242000,-166.7,0.00020355,2]
[422922641,1779634242000,-151.0,0.00020381,2]
[422922644,1779634242000,-387.12,0.00020548,2]
[422922643,1779634242000,-225.461358,0.00020532,2]
[422922645,1779634242000,-150.0,0.00020647,2]
[422922646,1779634242000,-190.82542213,0.00020647,2]
[422922647,1779634242000,-385.99,0.0002076,2]
[422922649,1779634242000,-676.54,0.00020978,2]
[422922650,1779634242000,-272.0,0.00021,2]
[422922617,1779634242000,-176.16409663,0.000198,2]
[422922634,1779634242000,-6224.82,0.00020145,2]
[422922614,1779634242000,-215.09191753,0.00019676,2]
[422922600,1779634242000,-10000.0,0.00019652,2]
[422922613,1779634242000,-215.09191753,0.00019676,2]
[422922592,1779634242000,-154.0,0.00019,2]
[422922591,1779634242000,-286.47442401,0.00019,2]
[422922593,1779634242000,-746.52,0.00019,2]
[422922594,1779634242000,-676.54,0.00019071,2]
[422922595,1779634242000,-286.47442401,0.000192,2]
[422922597,1779634242000,-163.36,0.00019343,2]
[422922598,1779634242000,-166.7,0.00019346,2]
[422922599,1779634242000,-10000.0,0.00019652,2]